bitfinex/quotes_ETHUSD_20241204
["timestamp","ask_amount","ask_price","bid_price","bid_amount"]
[1733350526049,0.89343609,3843.7,3842.6,1.2641]
[1733350526220,2.23355104,3843.6,3842.6,1.1641]
[1733350526419,1.34011495,3843.6,3842.6,1.1641]
[1733350526632,0.89346783,3843.5,3842.6,1.1641]
[1733350526934,0.24121068,3843.8,3842.6,1.1641]
[1733350526935,0.24121068,3843.8,3842.6,1.2641]
[1733350527123,0.24121068,3844.6,3842.6,1.2641]
[1733350527322,2.92050488,3844.7,3842.6,1.2641]
[1733350527323,0.24121068,3844.5,3842.6,1.2641]
[1733350527531,0.24121068,3844.4,3842.6,1.2641]
[1733350527735,0.24121068,3844.3,3842.6,1.2641]
[1733350527937,0.24121068,3844.2,3842.6,1.2641]
[1733350528137,1.0805202,3843.6,3842.6,1.2641]
[1733350528377,2.23363785,3843.5,3842.6,1.2641]
[1733350528535,0.89345514,3843.5,3842.6,1.2641]
[1733350528871,0.89345514,3843.4,3842.6,1.2641]
[1733350529174,1.34023876,3843.5,3842.6,1.2641]
[1733350529329,0.89349534,3843.4,3842.6,1.2641]
[1733350529525,1.34023876,3843.5,3842.6,1.2641]
[1733350529764,1.34023876,3843.5,3843.4,3.0]
[1733350529963,0.89348105,3843.5,3842.6,1.2641]
[1733350530269,0.89345051,3843.4,3842.6,1.2641]
[1733350530500,1.34018533,3843.5,3842.6,1.2641]
[1733350530666,2.23362078,3843.4,3842.6,1.2641]
[1733350530865,3.31414098,3843.3,3842.2,1.1866]
[1733350531205,1.0805202,3843.0,3842.2,1.1866]
[1733350531501,3.31414098,3842.9,3842.2,1.1866]
[1733350531663,0.89344831,3842.8,3842.2,1.1866]
[1733350531863,1.33986386,3842.8,3842.2,1.1866]
[1733350532107,0.89326177,3842.7,3842.2,1.1866]
[1733350532317,1.0805202,3842.8,3841.9,1.2866]
[1733350532479,0.24122098,3842.9,3841.9,1.2866]
[1733350532480,3.31369628,3842.7,3841.9,1.2866]
[1733350532681,1.86200128,3842.9,3841.9,1.2866]
[1733350532682,0.89327856,3842.6,3841.9,1.2866]
[1733350532867,2.41997517,3842.7,3841.9,1.1866]
[1733350533222,1.0805202,3842.5,3841.6,1.1866]
[1733350533364,0.89262975,3842.4,3841.6,1.1866]
[1733350533563,1.33901224,3842.5,3841.6,1.1866]
[1733350533763,1.33901224,3842.6,3841.6,1.1866]
[1733350534017,2.23142827,3842.5,3841.6,1.1866]
[1733350534310,0.89241603,3842.4,3841.6,1.1866]
[1733350534511,0.89241603,3842.3,3841.6,1.1866]
[1733350535067,0.89241603,3842.3,3841.4,0.1]
[1733350535284,0.89241603,3842.3,3841.3,1.2618]
[1733350535481,1.97293623,3842.3,3841.3,1.2618]
[1733350535663,0.89241603,3842.2,3841.3,1.2618]
[1733350536166,0.89241603,3842.2,3840.5,0.27894645]
[1733350536167,1.0805202,3842.0,3840.8,1.2621]
[1733350536393,2.22965581,3842.1,3840.4,1.2621]
[1733350536394,1.0805202,3841.7,3840.4,1.2621]
[1733350536603,5.8382894,3842.6,3840.4,1.2621]
[1733350536604,1.97234626,3841.6,3840.4,1.2621]
[1733350536917,1.97234626,3841.6,3840.0,1.1434]
[1733350536918,2.51260636,3841.5,3840.0,1.1434]
[1733350537122,2.51260636,3841.5,3839.7,1.2434]
[1733350537123,1.0805202,3841.3,3839.7,1.2434]
[1733350537359,1.97234626,3841.2,3839.7,1.38774]
[1733350537625,1.97234626,3841.2,3839.7,1.2434]
[1733350537626,0.89182606,3841.1,3839.7,1.2434]
[1733350537835,0.89182606,3841.1,3839.7,1.1434]
[1733350538185,1.97234626,3841.1,3839.7,1.2434]
[1733350538386,0.89182606,3841.0,3840.3,3.0]
[1733350538585,2.1610404,3841.5,3839.7,1.2434]
[1733350538586,2.65815131,3841.2,3839.7,1.2434]
[1733350538929,0.8889569,3841.1,3839.7,1.2434]
[1733350539085,0.8889569,3841.1,3839.5,0.1]
[1733350539435,0.8889569,3841.1,3839.5,0.3]
[1733350539436,1.9694771,3841.1,3839.5,0.3]
[1733350539642,2.65781825,3841.3,3839.6,0.1]
[1733350539929,0.88797851,3841.2,3839.6,0.1]
[1733350540147,1.0805202,3841.3,3840.2,3.0]
[1733350540286,0.88808123,3841.2,3840.2,3.0]
[1733350540495,1.0805202,3841.4,3840.2,3.0]
[1733350540693,0.88803107,3841.3,3840.0,1.1541]
[1733350540909,1.33204661,3841.7,3840.0,1.2541]
[1733350541120,3.7818207,3842.0,3840.9,3.0]
[1733350541121,2.65187605,3841.9,3840.9,3.0]
[1733350541320,5.45551931,3842.8,3840.3,0.3]
[1733350541321,1.0805202,3842.1,3840.3,0.3]
[1733350541491,0.88754571,3842.0,3840.3,0.3]
[1733350541834,2.65105761,3842.2,3840.9,3.0]
[1733350542003,2.65105761,3842.2,3840.7,1.1825]
[1733350542004,0.88706981,3842.1,3840.7,1.1825]
[1733350542200,1.56976853,3842.3,3841.3,3.0]
[1733350542416,1.56976853,3842.4,3841.3,3.0]
[1733350542743,1.31968401,3842.5,3841.3,3.0]
[1733350542943,2.1610404,3842.9,3841.7,3.0]
[1733350542944,1.31954591,3842.6,3841.7,3.0]
[1733350543253,0.23902571,3842.7,3841.7,3.0]
[1733350543428,1.0805202,3842.9,3841.3,1.2163]
[1733350543604,0.88660419,3842.8,3841.7,3.0]
[1733350543800,1.96712439,3842.8,3841.7,3.0]
[1733350543999,2.1610404,3843.2,3841.0,0.1]
[1733350544000,1.31957723,3842.9,3841.0,0.1]
[1733350544195,0.88646946,3842.8,3841.2,0.2]
[1733350544411,1.31957723,3843.0,3841.7,3.0]
[1733350544700,0.88648621,3842.9,3841.2,0.40449866]
[1733350544909,0.88648621,3842.9,3841.7,3.0]
[1733350545099,0.88648621,3842.9,3841.2,0.40449866]
[1733350545300,1.31957723,3843.1,3841.4,0.2]
[1733350545501,0.23905703,3843.2,3841.9,3.0]
[1733350545806,2.20589379,3843.2,3841.5,1.4552]
[1733350546057,0.88631656,3843.1,3841.5,1.4552]
[1733350546551,0.88631656,3843.1,3841.9,3.0]
[1733350546761,0.88631656,3843.1,3841.5,1.4552]
[1733350547048,0.88631656,3843.1,3841.9,3.0]
[1733350547247,1.96683676,3843.1,3841.9,3.0]
[1733350547400,0.23913088,3843.2,3841.9,3.0]
[1733350547401,2.64917029,3843.2,3841.9,3.0]
[1733350547603,1.12555601,3843.1,3841.5,1.4552]
[1733350547802,1.0805202,3843.2,3841.5,1.4552]
[1733350548043,0.8864099,3843.1,3841.5,1.65953758]
[1733350548443,0.23913088,3843.3,3841.5,1.65953758]
[1733350548444,1.31965108,3843.3,3841.5,1.65953758]
[1733350548642,0.8863064,3843.2,3841.5,1.65953758]
[1733350549451,1.9668266,3843.2,3841.5,1.65953758]
[1733350549609,0.8863064,3843.1,3841.5,1.65953758]
[1733350550043,0.88626123,3843.0,3841.5,1.65953758]
[1733350550207,1.31979654,3843.2,3841.5,1.65953758]
[1733350550408,0.88628069,3843.1,3841.5,1.65953758]
[1733350551138,0.23927634,3843.4,3842.4,3.0]
[1733350551322,1.32939185,3843.5,3842.4,3.0]
[1733350551323,0.23927634,3843.5,3842.4,3.0]
[1733350551534,1.0805202,3843.7,3842.3,1.1964]
[1733350551745,0.88622689,3843.6,3842.3,1.1964]
[1733350551920,0.23927634,3843.8,3842.8,3.0]
[1733350552123,0.23927634,3844.0,3843.4,3.0]
[1733350552374,0.13197965,3844.0,3843.0,1.1596]
[1733350552693,0.31950488,3844.7,3843.1,0.2]
[1733350552977,0.31950488,3844.7,3843.2,0.1]
[1733350553478,0.88644744,3844.6,3843.2,0.1]
[1733350553681,0.31950488,3844.7,3843.2,0.1]
[1733350553879,0.88647978,3844.6,3843.2,0.1]
[1733350554033,1.40002508,3844.7,3843.2,0.1]
[1733350554235,0.88648961,3844.6,3843.2,0.1]
[1733350554439,1.40002508,3844.7,3843.2,0.1]
[1733350554635,0.88653433,3844.6,3843.7,3.0]
[1733350555096,0.88653433,3844.6,3843.8,3.0]
[1733350555585,0.31950488,3844.7,3843.2,0.1]
[1733350555752,0.31950488,3844.7,3843.8,3.0]
[1733350556142,0.31950488,3844.7,3844.4,3.0]
[1733350556292,0.31950488,3844.7,3843.8,1.2972]
[1733350556794,0.31950488,3844.7,3844.4,3.0]
[1733350557305,0.31950488,3844.7,3843.8,1.7752771]
[1733350557772,0.31950488,3844.7,3843.8,1.97280481]
[1733350557959,0.31950488,3844.7,3844.1,0.2]
[1733350558358,0.31950488,3844.7,3844.4,3.0]
[1733350559187,0.31950488,3844.7,3844.1,0.2]
[1733350559401,0.31950488,3844.7,3844.4,3.0]
[1733350559751,0.31950488,3844.7,3844.1,0.2]
[1733350559962,0.31950488,3844.7,3843.8,2.17280481]
[1733350560190,0.31950488,3844.7,3843.9,0.21728048]
[1733350560502,0.31950488,3844.7,3844.1,0.2]
[1733350560864,0.31950488,3844.7,3844.4,3.0]
[1733350561560,0.31950488,3844.7,3843.8,1.2972]
[1733350561762,0.31950488,3844.7,3844.4,3.0]
[1733350561992,0.31950488,3844.7,3843.8,0.1]
[1733350562414,0.31950488,3844.7,3844.4,3.0]
[1733350562560,0.31950488,3844.7,3844.3,3.0]
[1733350563013,0.31950488,3844.7,3844.4,3.0]
[1733350563812,0.31950488,3844.7,3843.8,0.1]
[1733350564182,0.31950488,3844.7,3844.4,3.0]
[1733350564380,0.31950488,3844.7,3843.8,0.1]
[1733350564580,0.31950488,3844.7,3844.4,3.0]
[1733350564979,1.00637473,3845.5,3844.4,3.3]
[1733350565165,2.1610404,3846.1,3845.7,0.2]
[1733350565365,1.6207803,3846.8,3846.1,1.2303]
[1733350565566,1.6207803,3848.4,3846.2,0.7657139]
[1733350565816,1.6207803,3848.4,3846.5,0.2]
[1733350565817,0.23896756,3848.4,3846.5,0.2]
[1733350566078,0.23896756,3848.4,3846.8,0.2]
[1733350566283,0.23904521,3848.8,3847.0,3.0]
[1733350566570,0.23904521,3848.9,3846.8,0.9657139]
[1733350566813,1.56802767,3849.2,3846.8,0.9657139]
[1733350567028,1.56802767,3849.2,3848.1,0.1]
[1733350567172,1.32898246,3849.2,3848.8,0.2]
[1733350567404,1.32898246,3849.2,3849.0,0.2]
[1733350567604,2.1610404,3850.6,3849.0,0.2]
[1733350567834,0.23832699,3851.4,3849.0,0.2]
[1733350568055,1.12332882,3851.4,3849.0,0.9657139]
[1733350568202,0.23832699,3851.4,3849.0,0.2]
[1733350568403,2.59642,3851.5,3849.0,0.2]
[1733350568633,4.7571804,3851.9,3849.0,0.2]
[1733350568634,2.59647,3851.4,3849.0,0.2]
[1733350568844,2.59647,3851.4,3849.4,3.0]
[1733350569005,2.59645,3851.5,3849.0,0.2]
[1733350569354,1.12117325,3851.4,3849.0,0.2]
[1733350569559,1.6207803,3851.7,3849.0,0.2]
[1733350569560,2.59655,3851.3,3849.0,0.2]
[1733350569851,2.59656,3851.3,3849.0,0.2]
[1733350570144,1.6207803,3852.0,3849.0,0.2]
[1733350570346,2.59654,3851.3,3849.0,0.2]
[1733350570556,1.6207803,3852.1,3849.0,0.2]
[1733350570735,2.59659,3851.2,3849.0,0.2]
[1733350571939,3.48206755,3852.2,3849.0,0.2]
[1733350572147,2.59683,3850.9,3848.8,0.1]
[1733350572456,2.59649,3851.4,3848.8,0.1]
[1733350572763,2.59673,3851.0,3849.4,3.0]
[1733350572926,3.0,3852.0,3849.2,3.0]
[1733350573105,2.59721,3850.3,3849.1,3.0]
[1733350573307,2.59695,3850.7,3848.3,0.2]
[1733350573858,2.59695,3850.7,3848.1,1.2609]
[1733350574065,0.23700898,3850.6,3848.1,1.2609]
[1733350574348,3.23700898,3851.1,3847.5,1.3894]
[1733350574560,2.59757,3849.8,3847.7,0.1]
[1733350574854,2.59725,3850.3,3847.7,0.1]
[1733350575068,2.59755,3849.8,3847.7,0.53278392]
[1733350575216,2.59764,3849.7,3847.7,0.53278392]
[1733350575558,0.37920478,3850.2,3847.7,0.53278392]
[1733350575764,2.59764,3849.7,3847.7,0.53278392]
[1733350576316,5.19412,3850.5,3847.7,0.53278392]
[1733350576568,2.59769,3849.6,3847.7,0.53278392]
[1733350576872,0.87481461,3850.6,3847.5,1.1894]
[1733350576873,2.59794,3849.2,3847.5,1.1894]
[1733350577016,0.2,3848.1,3846.6,3.0]
[1733350577218,0.2,3847.9,3845.6,0.42271158]
[1733350577449,0.2,3847.9,3846.2,0.39671859]
[1733350578362,0.3,3847.9,3846.2,0.39671859]
[1733350578579,0.2,3847.6,3846.2,0.39671859]
[1733350579072,0.1,3847.4,3846.2,0.39671859]
[1733350579359,0.1,3847.4,3846.2,0.89388124]
[1733350579563,0.3,3847.4,3846.2,0.89388124]
[1733350580168,0.3,3847.4,3846.2,1.61761859]
[1733350580470,0.3,3847.4,3847.1,3.0]
[1733350580961,0.3,3847.4,3846.2,1.2209]
[1733350582522,0.3,3847.4,3846.6,0.52059025]
[1733350582727,0.3,3847.4,3846.2,1.2209]
[1733350583023,0.3,3847.4,3846.6,0.51373764]
[1733350584963,0.3,3847.4,3846.2,1.2209]
[1733350586276,0.9737,3848.0,3846.3,0.19667097]
[1733350586482,1.0737,3848.5,3846.5,1.2501]
[1733350586678,0.23861367,3849.1,3846.7,1.2501]
[1733350586679,0.2,3848.8,3846.7,1.2501]
[1733350586925,0.3,3849.0,3846.9,1.2501]
[1733350587076,0.3,3849.0,3846.9,1.64681859]
[1733350587280,0.2,3848.5,3846.9,1.64681859]
[1733350587481,0.2,3848.5,3846.9,1.2501]
[1733350587911,0.2,3848.5,3846.9,1.64681859]
[1733350588118,0.2,3848.5,3847.0,0.18140995]
[1733350591103,0.2,3848.5,3847.0,0.67506271]
[1733350591288,0.2,3848.5,3847.0,0.18140995]
[1733350591489,0.7291,3848.2,3846.9,1.2501]
[1733350591790,0.1,3848.0,3846.9,1.2501]
[1733350591996,0.1,3848.0,3846.9,1.75014672]
[1733350592712,0.7291,3848.2,3846.3,0.17067413]
[1733350592713,0.2,3847.7,3846.5,1.1458]
[1733350593012,0.1,3847.8,3846.6,0.02599559]
[1733350593192,0.7291,3848.2,3846.6,0.16024132]
[1733350593393,0.7291,3848.2,3846.6,0.55695991]
[1733350594030,0.23928378,3848.4,3847.8,3.0]
[1733350594358,0.1,3848.6,3846.8,1.2132]
[1733350594359,0.23928378,3848.3,3846.8,1.2132]
[1733350594493,0.1,3848.1,3846.8,1.2132]
[1733350594692,0.23928378,3848.0,3846.8,1.3479447]
[1733350594957,0.23928378,3847.9,3846.8,1.3479447]
[1733350595114,0.23928378,3847.8,3846.8,1.3479447]
[1733350595446,0.23928378,3848.0,3846.8,1.3479447]
[1733350595595,0.23928378,3847.9,3846.8,1.2132]
[1733350595795,0.23928378,3847.8,3846.8,1.2132]
[1733350596028,0.23928378,3848.0,3846.8,1.2132]
[1733350596395,0.23928378,3848.0,3847.7,3.0]
[1733350596597,0.1,3848.0,3847.7,3.0]
[1733350596998,0.24078062,3847.9,3846.8,1.2132]
[1733350597193,0.24078062,3847.9,3846.8,1.3479447]
[1733350597398,0.24078062,3848.2,3846.8,1.3479447]
[1733350597698,0.24078062,3848.1,3847.8,3.0]
[1733350598008,0.24078062,3848.6,3846.9,0.025987]
[1733350598212,0.7291,3848.7,3846.9,0.025987]
[1733350598213,0.24078062,3848.5,3847.0,0.26386901]
[1733350598444,0.24078062,3848.4,3847.1,0.025987]
[1733350598649,0.1,3848.6,3847.1,0.025987]
[1733350598938,0.2410107,3848.5,3847.0,0.26386901]
[1733350599122,0.2410107,3848.4,3847.1,0.55138429]
[1733350599295,0.2410107,3848.3,3847.1,0.55138429]
[1733350599494,0.1,3848.6,3847.1,0.55138429]
[1733350599495,0.2410107,3848.2,3847.1,0.55138429]
[1733350599700,0.2410107,3848.1,3847.1,0.55138429]
[1733350599900,0.1,3848.6,3847.2,0.38152533]
[1733350600095,0.2412868,3848.5,3847.2,0.38152533]
[1733350600329,0.2412868,3848.4,3847.2,0.38152533]
[1733350600496,0.2412868,3848.3,3847.2,0.38152533]
[1733350600696,0.2412868,3848.2,3847.2,0.38152533]
[1733350600926,0.2412868,3848.1,3847.2,0.38152533]
[1733350601131,0.2412868,3848.0,3847.2,0.38152533]
[1733350601390,0.24152499,3847.9,3846.8,1.69252356]
[1733350601541,0.1,3848.2,3846.8,1.69252356]
[1733350601542,0.97062499,3847.8,3846.8,0.47932356]
[1733350601744,0.24152499,3847.7,3846.8,0.47932356]
[1733350601893,0.24144227,3847.6,3846.4,1.1007]
[1733350602097,0.24144227,3847.5,3846.5,0.14974186]
[1733350602328,0.7291,3847.8,3846.5,0.14974186]
[1733350602329,0.24156558,3847.4,3846.5,0.14974186]
[1733350602647,0.7291,3847.8,3846.5,0.14974186]
[1733350602799,0.79158193,3847.7,3846.4,1.1007]
[1733350602995,0.24158193,3847.6,3846.4,1.1007]
[1733350603298,0.24158193,3847.5,3846.4,1.58976727]
[1733350603499,0.24158193,3847.4,3846.4,1.58976727]
[1733350603746,0.24158193,3847.3,3846.4,1.58976727]
[1733350604041,0.55,3847.7,3846.4,1.58976727]
[1733350604199,0.39953133,3847.6,3846.4,1.58976727]
[1733350604402,0.24162133,3847.5,3846.4,1.58976727]
[1733350604745,0.24162133,3847.4,3846.4,1.58976727]
[1733350604902,0.24162133,3847.3,3846.5,0.02599376]
[1733350605120,0.15791,3847.6,3846.5,0.02599376]
[1733350605469,0.24158603,3847.5,3846.4,1.58976727]
[1733350605773,0.24158603,3847.4,3846.4,1.748744]
[1733350606070,0.2416076,3847.3,3846.4,1.748744]
[1733350606235,0.2416076,3847.2,3846.4,1.748744]
[1733350606449,0.15791,3847.6,3846.4,1.748744]
[1733350606645,0.24165307,3847.5,3846.4,1.748744]
[1733350606842,0.24165307,3847.4,3846.5,0.20086815]
[1733350607051,0.24165307,3847.3,3846.5,0.1748744]
[1733350607366,0.24165307,3847.2,3846.5,0.1748744]
[1733350607527,0.15791,3847.6,3846.5,0.1748744]
[1733350607724,0.24168335,3847.5,3846.5,0.1748744]
[1733350607920,0.24168335,3847.4,3846.5,0.1748744]
[1733350608124,0.24168335,3847.3,3846.6,0.17646417]
[1733350608322,0.7291,3847.8,3846.7,0.02599375]
[1733350608924,0.8291,3847.8,3846.6,0.17646417]
[1733350609373,0.1,3847.6,3846.4,1.58976727]
[1733350609674,0.55,3847.5,3846.4,1.58976727]
[1733350609974,0.55,3847.5,3845.5,1.1855]
[1733350609975,0.7291,3847.1,3845.5,1.1855]
[1733350610176,0.2416741,3847.0,3845.5,1.1855]
[1733350610381,0.2416741,3846.9,3845.5,1.67444001]
[1733350610548,0.7291,3847.1,3845.6,0.17004368]
[1733350610748,0.24168824,3847.0,3845.6,0.17004368]
[1733350611080,0.24168824,3846.9,3845.6,0.17004368]
[1733350611278,0.24168824,3847.0,3845.6,0.17004368]
[1733350611505,0.24168824,3846.9,3845.6,0.17004368]
[1733350611704,0.24168824,3846.9,3845.5,2.0711586]
[1733350611705,0.24168824,3846.8,3845.7,0.22412023]
[1733350611907,0.3,3847.0,3845.7,0.22412023]
[1733350612118,0.24171151,3846.9,3845.5,1.67444001]
[1733350612265,1.82081151,3846.8,3845.5,0.48894001]
[1733350612466,1.82081151,3846.8,3845.1,1.2027]
[1733350612467,1.13480328,3846.7,3845.1,1.2027]
[1733350612714,0.24171151,3846.6,3845.1,1.2027]
[1733350612916,1.4791,3846.4,3845.1,1.2027]
[1733350613206,0.55,3846.2,3845.0,0.483765]
[1733350613414,0.89171151,3846.2,3844.6,1.1952]
[1733350613566,0.24171151,3846.1,3844.6,1.1952]
[1733350613765,1.2791,3845.9,3844.6,1.1952]
[1733350614068,0.24171151,3845.8,3844.3,0.4795176]
[1733350614289,0.24171151,3845.8,3844.3,0.68666122]
[1733350614290,0.18208115,3845.7,3844.3,0.68666122]
[1733350614669,0.75,3845.6,3844.3,0.68666122]
[1733350615178,0.85,3845.6,3844.3,0.68666122]
[1733350615385,0.7291,3845.5,3844.3,0.20714362]
[1733350615611,0.7291,3845.5,3844.2,1.1952]
[1733350615612,0.17611812,3845.4,3844.2,1.1952]
[1733350615912,0.27611812,3845.4,3843.8,1.1559]
[1733350616735,0.1,3845.2,3843.8,1.1559]
[1733350616943,0.75,3845.3,3843.2,0.02600883]
[1733350616944,0.7291,3844.9,3843.5,0.4950697]
[1733350617111,0.84217194,3844.8,3843.2,1.1559]
[1733350617313,1.61784453,3845.3,3843.3,0.39671859]
[1733350617507,0.3,3846.7,3843.3,0.39671859]
[1733350617508,0.8921617,3845.2,3843.3,0.39671859]
[1733350617733,0.8921617,3845.1,3843.2,0.47753689]
[1733350617935,4.75763605,3845.4,3842.7,1.1999]
[1733350617936,0.8921617,3845.0,3842.7,1.1999]
[1733350618162,1.04928775,3845.2,3842.8,0.15966186]
[1733350618331,2.60045,3845.5,3842.8,0.55638045]
[1733350618332,2.70050148,3845.3,3842.8,0.55638045]
[1733350618534,5.29820233,3845.5,3842.8,0.55638045]
[1733350618750,2.69775233,3845.6,3842.8,0.55638045]
[1733350618949,2.69775233,3845.5,3842.8,0.55638045]
[1733350619136,2.69775233,3845.4,3843.8,3.0]
[1733350619338,0.55,3845.3,3842.9,0.17562805]
[1733350619552,0.55,3845.5,3842.9,0.17562805]
[1733350619757,0.55,3845.7,3843.4,2.34167]
[1733350620070,3.7873028,3845.7,3844.0,3.0]
[1733350620275,3.7873028,3845.7,3843.0,3.0]
[1733350620276,2.60032,3845.7,3843.9,2.34133]
[1733350620479,0.0796,3845.5,3844.4,2.34105]
[1733350620778,2.60017,3845.9,3843.3,2.34173]
[1733350621128,3.77685327,3846.1,3843.3,2.34173]
[1733350621129,2.60003,3846.1,3844.3,2.3411]
[1733350621571,2.6001,3846.0,3844.3,2.3411]
[1733350621869,2.60041,3845.6,3844.3,2.34111]
[1733350622243,0.55,3846.0,3844.3,2.34111]
[1733350622434,2.60044,3845.5,3843.6,3.0]
[1733350622631,0.55,3845.9,3844.2,2.34117]
[1733350622850,0.55,3845.9,3843.7,2.34149]
[1733350623150,2.60038,3845.6,3844.2,2.34115]
[1733350623346,2.59996,3846.2,3844.2,2.34115]
[1733350623545,2.60036,3845.7,3844.2,2.34115]
[1733350623745,0.6001,3846.0,3844.3,2.34111]
[1733350623931,2.60003,3846.1,3844.3,2.34111]
[1733350624126,0.60003,3846.1,3844.3,2.34111]
[1733350624441,8.79,3846.9,3844.3,2.34111]
[1733350624442,2.59963,3846.7,3844.4,0.1]
[1733350624646,2.59933,3847.2,3844.5,3.0]
[1733350624870,3.77685327,3847.6,3845.1,2.34058]
[1733350625073,2.5994,3847.1,3845.1,2.34063]
[1733350625243,6.37600327,3847.4,3844.7,2.34083]
[1733350625244,2.59929,3847.2,3844.7,2.34083]
[1733350625443,2.59899,3847.7,3844.7,2.34083]
[1733350625444,2.59969,3846.7,3845.2,2.34053]
[1733350625750,2.59936,3847.1,3845.2,2.34053]
[1733350625930,3.0,3847.5,3845.2,2.34053]
[1733350626132,2.1506911,3846.6,3845.2,2.34053]
[1733350626358,0.1506911,3846.6,3845.2,2.34053]
[1733350626541,1.61277207,3846.5,3845.2,2.34053]
[1733350626765,2.30113572,3846.8,3844.6,2.60101]
[1733350627071,2.30113572,3846.8,3843.9,3.1]
[1733350627072,3.22603638,3846.7,3843.7,1.2153]
[1733350627272,2.60037,3845.6,3844.2,2.6013]
[1733350627480,1.07489577,3845.7,3843.7,2.6016]
[1733350627630,1.07489577,3845.7,3843.4,1.2153]
[1733350627983,1.07489577,3845.8,3843.4,1.2153]
[1733350628277,1.07489577,3845.8,3844.3,2.60121]
[1733350628437,1.07489577,3845.8,3844.4,3.0]
[1733350628973,1.07489577,3845.8,3844.0,3.0]
[1733350629273,3.00681319,3846.1,3844.0,3.0]
[1733350629274,2.40788303,3846.0,3844.0,3.2]
[1733350629500,0.40677319,3846.1,3845.2,2.60064]
[1733350629775,1.07489577,3846.6,3845.3,2.6005]
[1733350630132,1.07489577,3846.5,3845.3,2.6005]
[1733350630350,1.07489577,3846.6,3845.9,2.60016]
[1733350630550,1.07489577,3847.1,3845.3,3.0]
[1733350630791,1.07489577,3847.1,3845.3,2.60056]
[1733350630993,1.07489577,3847.1,3845.8,2.6002]
[1733350631555,1.77645549,3847.9,3846.3,2.59989]
[1733350631556,1.07489577,3847.2,3846.3,2.59989]
[1733350631712,2.59858,3848.3,3845.3,1.1383]
[1733350631713,1.07489577,3847.4,3845.3,1.1383]
[1733350631872,2.59898,3847.7,3846.0,2.60004]
[1733350631873,1.07489577,3847.3,3846.0,2.60004]
[1733350632065,1.07489577,3847.4,3846.0,2.60004]
[1733350632292,1.07489577,3847.3,3846.1,2.60003]
[1733350632495,0.40724156,3847.5,3845.8,2.60017]
[1733350632702,2.59883,3847.9,3845.9,5.60016]
[1733350632867,6.82128509,3848.1,3845.7,3.0]
[1733350633061,2.59911,3847.5,3845.9,2.60015]
[1733350633262,4.37524549,3848.0,3846.0,2.60008]
[1733350633569,2.59905,3847.6,3846.0,2.60008]
[1733350633768,2.68573012,3847.8,3846.0,2.60008]
[1733350633968,2.68573012,3847.9,3846.0,2.60008]
[1733350634270,2.14889171,3847.6,3845.8,3.0]
[1733350634606,0.5993,3847.2,3845.7,2.6003]
[1733350634821,2.14889171,3847.4,3845.8,3.0]
[1733350635110,2.59917,3847.4,3845.8,3.0]
[1733350635328,2.68573012,3847.7,3845.8,3.0]
[1733350635529,0.68573012,3847.8,3845.6,3.0]
[1733350635690,0.68573012,3847.8,3845.3,3.0]
[1733350635691,1.61192968,3847.1,3845.3,5.60055]
[1733350635888,12.01260509,3847.7,3844.5,2.60106]
[1733350636088,12.01260509,3847.7,3844.2,1.1369]
[1733350636089,4.99906058,3847.6,3844.2,1.1369]
[1733350636287,2.59931,3847.2,3844.9,2.60078]
[1733350636545,1.77645549,3847.5,3844.9,2.60078]
[1733350636705,2.59962,3846.8,3844.3,0.19162611]
[1733350636889,0.59943,3847.0,3844.3,0.19162611]
[1733350637085,4.37558549,3847.5,3844.4,0.38635315]
[1733350637086,1.77645549,3847.5,3844.4,0.38635315]
[1733350637318,2.59929,3847.3,3845.5,2.60039]
[1733350637639,2.59929,3847.3,3845.1,3.82799]
[1733350637640,2.59929,3847.3,3845.3,3.0]
[1733350637789,1.77645549,3847.7,3845.6,2.60037]
[1733350637988,4.98730156,3847.8,3845.6,2.60037]
[1733350638301,0.88886239,3847.7,3845.6,2.60037]
[1733350638506,2.59922,3847.3,3845.7,3.0]
[1733350638738,2.59936,3847.1,3845.5,3.0]
[1733350638888,0.88886239,3847.0,3845.5,3.0]
[1733350639091,0.88886239,3846.9,3845.7,3.0]
[1733350639327,2.59936,3847.1,3845.1,1.2273]
[1733350639537,0.88901778,3847.0,3845.6,2.60037]
[1733350639749,2.5991,3847.5,3845.7,5.6003]
[1733350640027,3.48828263,3847.4,3845.3,3.0]
[1733350640226,3.48836263,3847.3,3845.5,3.0]
[1733350640430,0.88912263,3847.2,3845.7,3.0]
[1733350641029,3.48841263,3847.2,3845.5,3.0]
[1733350641330,0.49201538,3847.4,3845.6,2.60036]
[1733350641331,0.88912263,3847.1,3845.6,2.60036]
[1733350641552,0.88912263,3847.0,3845.7,3.0]
[1733350641836,2.59909,3847.5,3845.4,2.60049]
[1733350641988,2.59929,3847.2,3845.5,3.0]
[1733350642192,0.88942324,3847.1,3845.6,2.60036]
[1733350642394,0.88942324,3847.0,3845.7,3.0]
[1733350642630,0.88942324,3846.9,3845.7,3.0]
[1733350642882,1.07588461,3847.1,3845.7,3.0]
[1733350643006,1.96550335,3847.0,3845.7,3.0]
[1733350643335,0.88961874,3846.9,3845.7,3.0]
[1733350643637,1.07588461,3847.0,3845.7,3.0]
[1733350644434,1.96580937,3846.9,3845.7,3.0]
[1733350644737,0.89026734,3846.8,3845.7,3.0]
[1733350644942,1.07588461,3847.0,3845.7,3.0]
[1733350645435,1.96617326,3846.9,3845.7,3.0]
[1733350645731,0.89072312,3846.8,3845.7,3.0]
[1733350645887,1.07588461,3846.9,3845.7,3.0]
[1733350646086,1.96657203,3846.8,3845.7,3.0]
[1733350646333,0.89068742,3846.7,3845.7,3.0]
[1733350646632,1.07588461,3846.7,3845.7,5.60029]
[1733350646888,1.07588461,3846.7,3845.1,1.65003]
[1733350646889,1.07588461,3846.7,3845.9,3.0]
[1733350647039,1.07588461,3846.7,3845.7,3.0]
[1733350647240,1.96657203,3846.8,3845.2,3.0]